[Event "127th NZ Congress Major 2020"]
[Site "Tauranga"]
[Date "2020.01.16"]
[Round "3.2"]
[White "Gold, Hamish"]
[Black "Tang, Hao"]
[Result "0-1"]
[ECO "A45"]
[WhiteElo "1670"]
[BlackElo "1624"]
[Annotator "NA"]
[PlyCount "82"]
[EventDate "2020.01.14"]
[EventType "swiss"]
[EventCountry "NZL"]
[SourceTitle "playchess.com"]
[Source "ChessBase"]
[SourceQuality "1"]
[TimeControl "40/5400+30:1800+30"]

1. e3 {[%emt 0:00:00]} Nf6 {[%emt 0:03:08]} 2. d4 {[%emt 0:00:42]} e6 {[%emt 0:00:15]} 3. f4 {[%emt 0:01:34]} c5 {[%emt 0:00:34]} 4. Nf3 {[%emt 0:01:30]} Nc6 {[%emt 0:00:37]} 5. c3 {[%emt 0:00:47]} b6 {[%emt 0:01:02]} 6. Bd3 {[%emt 0:01:59]} Bb7 {[%emt 0:00:17]} 7. O-O {[%emt 0:01:14]} Be7 {[%emt 0:01:02]} 8. Nbd2 {[%emt 0:00:53]} d5 {[%emt 0:01:03]} 9. Ne5 {[%emt 0:01:41]} O-O {[%emt 0:01:23]} 10. Rf3 {[%emt 0:04:19]} Nxe5 {[%emt 0:06:46]} 11. fxe5 {[%emt 0:09:54]} Ne4 {[%emt 0:00:40]} 12. Rh3 {[%emt 0:01:13]} f5 {[%emt 0:20:07]} 13. Bxe4 {[%emt 0:07:11]} fxe4 {[%emt 0:00:53]} 14. Qh5 {[%emt 0:01:02]} h6 {[%emt 0:07:13]} 15. Qg6 {[%emt 0:04:12]} Kh8 {[%emt 0:03:01]} 16. Rg3 {[%emt 0:07:50]} Rg8 {[%emt 0:01:01]} 17. Qxe6 {[%emt 0:00:59]} Qf8 {[%emt 0:11:37]} 18. Qd7 {[%emt 0:03:42]} Rb8 {[%emt 0:05:00]} 19. Nf1 {[%emt 0:08:14]} Bh4 {[%emt 0:01:02]} 20. Bd2 {[%emt 0:02:27]} Bxg3 {[%emt 0:06:31]} 21. Nxg3 {[%emt 0:00:36]} Qe8 {[%emt 0:00:36]} 22. Qc7 {[%emt 0:06:12]} Rf8 {[%emt 0:02:05]} 23. Rf1 {[%emt 0:01:44]} Rxf1+ {[%emt 0:01:56]} 24. Kxf1 {[%emt 0:01:35]} Ba6+ {[%emt 0:05:15]} 25. Kg1 {[%emt 0:04:59]} Rb7 {[%emt 0:01:31]} 26. Qd6 {[%emt 0:01:26]} Rd7 {[%emt 0:03:10]} 27. Qc6 {[%emt 0:01:00]} Rd8 {[%emt 0:00:23]} 28. Qc7 {[%emt 0:03:30]} Qd7 {[%emt 0:00:42]} 29. Qxd7 {[%emt 0:00:31]} Rxd7 {[%emt 0:00:02]} 30. h3 {[%emt 0:00:40]} Rf7 {[%emt 0:00:17]} 31. Be1 {[%emt 0:01:09]} g6 {[%emt 0:00:58]} 32. Kh2 {[%emt 0:02:07]} Kg7 {[%emt 0:00:38]} 33. h4 {[%emt 0:01:39]} Kf8 {[%emt 0:00:23]} 34. Nh1 {[%emt 0:01:10]} Rf1 {[%emt 0:03:19]} 35. Bg3 {[%emt 0:00:20]} Rb1 {[%emt 0:00:18]} 36. Bf4 {[%emt 0:00:44]} h5 {[%emt 0:01:29]} 37. Nf2 {[%emt 0:04:59]} Bc8 {[%emt 0:00:12]} 38. Kg3 {[%emt 0:00:24]} Rxb2 {[%emt 0:00:18]} 39. Nh3 {[%emt 0:01:33]} Bxh3 {[%emt 0:00:09]} 40. gxh3 {[%emt 0:00:00]} Rxa2 {[%emt 0:00:00]} 41. Bg5 {[%emt 0:00:22]} Kf7 {[%emt 0:01:04]} 0-1

[Event "127th NZ Congress Major 2020"]
[Site "Tauranga"]
[Date "2020.01.16"]
[Round "3.3"]
[White "Ashe, Michael"]
[Black "McDougall, Euan"]
[Result "1-0"]
[ECO "E71"]
[WhiteElo "1460"]
[BlackElo "1679"]
[Annotator "NA"]
[PlyCount "117"]
[EventDate "2020.01.14"]
[EventType "swiss"]
[EventCountry "NZL"]
[SourceTitle "playchess.com"]
[Source "ChessBase"]
[SourceQuality "1"]
[TimeControl "40/5400+30:1800+30"]

1. d4 {[%emt 0:00:00]} Nf6 {[%emt 0:00:00]} 2. c4 {[%emt 0:00:00]} c5 {[%emt 0:00:00]} 3. d5 {[%emt 0:00:14]} g6 {[%emt 0:00:09]} 4. Nc3 {[%emt 0:00:23]} Bg7 {[%emt 0:00:05]} 5. e4 {[%emt 0:01:14]} d6 {[%emt 0:00:06]} 6. Bg5 {[%emt 0:00:50]} O-O {[%emt 0:00:07]} 7. h3 {[%emt 0:00:53]} Qa5 {[%emt 0:00:12]} 8. Bd2 {[%emt 0:02:19]} a6 {[%emt 0:00:20]} 9. Nf3 {[%emt 0:05:55]} Bd7 {[%emt 0:02:20]} 10. a4 {[%emt 0:03:52]} Qc7 {[%emt 0:00:13]} 11. Bd3 {[%emt 0:02:10]} Ne8 {[%emt 0:00:19]} 12. Qc2 {[%emt 0:02:27]} f5 {[%emt 0:00:19]} 13. exf5 {[%emt 0:03:33]} Bxf5 {[%emt 0:00:03]} 14. Bxf5 {[%emt 0:02:38]} Rxf5 {[%emt 0:00:01]} 15. Ng5 {[%emt 0:05:59]} e5 {[%emt 0:01:42]} 16. dxe6 {[%emt 0:07:06]} Qe7 {[%emt 0:00:13]} 17. Nd5 {[%emt 0:06:33]} Qd8 {[%emt 0:01:14]} 18. Nf7 {[%emt 0:02:23]} Rxf7 {[%emt 0:02:00]} 19. exf7+ {[%emt 0:01:48]} Kxf7 {[%emt 0:00:01]} 20. O-O {[%emt 0:01:52]} Nc6 {[%emt 0:00:26]} 21. Bc3 {[%emt 0:06:03]} Nd4 {[%emt 0:00:11]} 22. Bxd4 {[%emt 0:01:20]} Bxd4 {[%emt 0:00:02]} 23. Rfe1 {[%emt 0:00:48]} Nf6 {[%emt 0:01:08]} 24. Re7+ {[%emt 0:02:35]} Kf8 {[%emt 0:00:04]} 25. Rxb7 {[%emt 0:02:57]} Qc8 {[%emt 0:00:06]} 26. Rc7 {[%emt 0:02:35]} Qb8 {[%emt 0:00:04]} 27. Qe2 {[%emt 0:04:46]} Nxd5 {[%emt 0:00:32]} 28. Rxh7 {[%emt 0:02:14]} Kg8 {[%emt 0:01:24]} 29. Rd7 {[%emt 0:04:24]} Nf6 {[%emt 0:00:12]} 30. Qe6+ {[%emt 0:01:21]} Kh8 {[%emt 0:00:02]} 31. Rxd6 {[%emt 0:04:01]} Qe8 {[%emt 0:00:24]} 32. Rb1 {[%emt 0:05:33]} Qxe6 {[%emt 0:00:46]} 33. Rxe6 {[%emt 0:00:29]} Kg7 {[%emt 0:00:10]} 34. Kf1 {[%emt 0:03:14]} a5 {[%emt 0:00:11]} 35. Rb6 {[%emt 0:01:12]} Ne4 {[%emt 0:00:06]} 36. Rd1 {[%emt 0:03:11]} Nxf2 {[%emt 0:00:13]} 37. Rxd4 {[%emt 0:00:57]} cxd4 {[%emt 0:00:23]} 38. Kxf2 {[%emt 0:00:11]} Rd8 {[%emt 0:00:28]} 39. Ke2 {[%emt 0:01:10]} Kh6 {[%emt 0:00:32]} 40. Rb5 {[%emt 0:00:00]} d3+ {[%emt 0:00:00]} 41. Kd2 {[%emt 0:01:17]} Rd4 {[%emt 0:01:17]} 42. b3 {[%emt 0:01:26]} Rf4 {[%emt 0:00:52]} 43. Kxd3 {[%emt 0:06:56]} Rf2 {[%emt 0:00:04]} 44. c5 {[%emt 0:00:28]} Rxg2 {[%emt 0:00:12]} 45. c6 {[%emt 0:00:13]} Rg3+ {[%emt 0:00:03]} 46. Kc4 {[%emt 0:00:34]} Rg1 {[%emt 0:00:06]} 47. Kc5 {[%emt 0:00:19]} Rf1 {[%emt 0:00:13]} 48. Kb6 {[%emt 0:00:35]} g5 {[%emt 0:00:13]} 49. c7 {[%emt 0:00:39]} g4 {[%emt 0:00:15]} 50. hxg4 {[%emt 0:00:21]} Rf8 {[%emt 0:00:30]} 51. Kb7 {[%emt 0:00:15]} Kg7 {[%emt 0:00:03]} 52. c8=Q {[%emt 0:00:52]} Rf7+ {[%emt 0:00:11]} 53. Qc7 {[%emt 0:00:15]} Kh8 {[%emt 0:00:11]} 54. Rxa5 {[%emt 0:00:28]} Rf8 {[%emt 0:00:21]} 55. Ra8 {[%emt 0:00:50]} Kg8 {[%emt 0:00:11]} 56. Rxf8+ {[%emt 0:00:26]} Kxf8 {[%emt 0:00:01]} 57. g5 {[%emt 0:00:35]} Kg8 {[%emt 0:00:14]} 58. g6 {[%emt 0:00:10]} Kf8 {[%emt 0:00:02]} 59. Qf7# {[%emt 0:00:11]} 1-0

[Event "127th NZ Congress Major 2020"]
[Site "Tauranga"]
[Date "2020.01.16"]
[Round "3.5"]
[White "Carpinter, Bernard"]
[Black "Pakenham, John"]
[Result "1-0"]
[ECO "D77"]
[WhiteElo "1708"]
[BlackElo "1624"]
[Annotator "NA"]
[PlyCount "93"]
[EventDate "2020.01.14"]
[EventType "swiss"]
[EventCountry "NZL"]
[SourceTitle "playchess.com"]
[Source "ChessBase"]
[SourceQuality "1"]
[TimeControl "40/5400+30:1800+30"]

1. Nf3 {[%emt 0:00:00]} Nf6 {[%emt 0:00:00]} 2. d4 {[%emt 0:00:22]} d5 {[%emt 0:00:26]} 3. g3 {[%emt 0:00:20]} g6 {[%emt 0:00:16]} 4. Bg2 {[%emt 0:00:34]} Bg7 {[%emt 0:00:15]} 5. O-O {[%emt 0:00:12]} O-O {[%emt 0:00:15]} 6. c4 {[%emt 0:00:35]} e6 {[%emt 0:01:05]} 7. Qc2 {[%emt 0:02:01]} dxc4 {[%emt 0:01:36]} 8. Qxc4 {[%emt 0:01:10]} Nbd7 {[%emt 0:01:04]} 9. Bf4 {[%emt 0:01:17]} c6 {[%emt 0:01:28]} 10. Nc3 {[%emt 0:00:55]} Nb6 {[%emt 0:01:29]} 11. Qb3 {[%emt 0:00:10]} Nfd5 {[%emt 0:01:44]} 12. Bg5 {[%emt 0:00:26]} Bf6 {[%emt 0:02:54]} 13. Bxf6 {[%emt 0:01:10]} Qxf6 {[%emt 0:01:09]} 14. e4 {[%emt 0:03:54]} Nc7 {[%emt 0:01:10]} 15. Rfd1 {[%emt 0:01:55]} Rd8 {[%emt 0:01:29]} 16. a4 {[%emt 0:00:26]} Nd7 {[%emt 0:02:23]} 17. Rac1 {[%emt 0:04:40]} b6 {[%emt 0:02:13]} 18. e5 {[%emt 0:03:30]} Qe7 {[%emt 0:03:54]} 19. Ne4 {[%emt 0:00:14]} Nb8 {[%emt 0:01:39]} 20. a5 {[%emt 0:06:22]} Nd5 {[%emt 0:02:04]} 21. Nd6 {[%emt 0:03:53]} Bd7 {[%emt 0:01:53]} 22. Nd2 {[%emt 0:00:26]} b5 {[%emt 0:03:06]} 23. N2e4 {[%emt 0:02:08]} Na6 {[%emt 0:01:33]} 24. h4 {[%emt 0:07:56]} h6 {[%emt 0:02:19]} 25. Qf3 {[%emt 0:05:06]} Kg7 {[%emt 0:01:45]} 26. Nb7 {[%emt 0:03:34]} Rf8 {[%emt 0:03:43]} 27. Nbc5 {[%emt 0:05:25]} Nxc5 {[%emt 0:01:23]} 28. Nxc5 {[%emt 0:01:00]} Be8 {[%emt 0:00:38]} 29. Qg4 {[%emt 0:01:09]} Rb8 {[%emt 0:05:19]} 30. h5 {[%emt 0:05:10]} Qg5 {[%emt 0:03:29]} 31. Qxg5 {[%emt 0:01:57]} hxg5 {[%emt 0:00:05]} 32. hxg6 {[%emt 0:03:37]} Kxg6 {[%emt 0:01:14]} 33. Be4+ {[%emt 0:04:06]} Kg7 {[%emt 0:00:30]} 34. Kg2 {[%emt 0:01:47]} Nc7 {[%emt 0:01:54]} 35. Rh1 {[%emt 0:01:11]} f5 {[%emt 0:00:15]} 36. exf6+ {[%emt 0:00:13]} Kxf6 {[%emt 0:00:28]} 37. Rh6+ {[%emt 0:00:33]} Ke7 {[%emt 0:00:30]} 38. Rh7+ {[%emt 0:01:05]} Rf7 {[%emt 0:01:43]} 39. Rch1 {[%emt 0:00:34]} Nd5 {[%emt 0:01:39]} 40. Bg6 {[%emt 0:00:00]} Nf6 {[%emt 0:00:00]} 41. Rh8 {[%emt 0:13:03]} Rg7 {[%emt 0:05:02]} 42. Bxe8 {[%emt 0:00:59]} Nxe8 {[%emt 0:00:38]} 43. R1h6 {[%emt 0:02:41]} b4 {[%emt 0:02:59]} 44. Rxe6+ {[%emt 0:07:15]} Kf7 {[%emt 0:00:10]} 45. Rxc6 {[%emt 0:00:15]} Rb5 {[%emt 0:00:36]} 46. Nb3 {[%emt 0:00:19]} Rf5 {[%emt 0:01:38]} 47. Ra6 {[%emt 0:00:34]} 1-0

[Event "127th NZ Congress Major 2020"]
[Site "Tauranga"]
[Date "2020.01.17"]
[Round "4.1"]
[White "Tang, Hao"]
[Black "Ashe, Michael"]
[Result "1-0"]
[ECO "D43"]
[WhiteElo "1624"]
[BlackElo "1460"]
[Annotator "NA RC"]
[PlyCount "77"]
[EventDate "2020.01.14"]
[EventType "swiss"]
[EventCountry "NZL"]
[SourceTitle "playchess.com"]
[Source "ChessBase"]
[SourceQuality "1"]
[TimeControl "40/5400+30:1800+30"]

1. d4 {[%emt 0:00:00]} Nf6 {[%emt 0:00:00]} 2. Nf3 {[%emt 0:00:00]} e6 {[%emt 0:00:12]} 3. Bf4 {[%emt 0:00:00]} d5 {[%emt 0:01:57]} 4. c4 {[%emt 0:00:08]} c6 {[%emt 0:02:44]} 5. Nc3 {[%emt 0:00:31]} Bb4 {[%emt 0:04:44]} 6. e3 {[%emt 0:01:36]} Ne4 {[%emt 0:05:21]} 7. Qb3 {[%emt 0:01:35]} Bxc3+ {[%emt 0:05:24]} 8. bxc3 {[%emt 0:00:14]} O-O {[%emt 0:01:05]} 9. cxd5 {[%emt 0:00:59]} cxd5 {[%emt 0:01:10]} 10. Bd3 {[%emt 0:00:31]} Nf6 {[%emt 0:02:00]} 11. h3 {[%emt 0:01:09]} b6 {[%emt 0:02:11]} 12. O-O {[%emt 0:00:31]} Ba6 {[%emt 0:00:49]} 13. Bxa6 {[%emt 0:03:00]} Nxa6 {[%emt 0:00:09]} 14. Ne5 {[%emt 0:06:34]} Nb8 {[%emt 0:05:03]} 15. c4 {[%emt 0:01:55]} Nbd7 {[%emt 0:04:32]} 16. Nc6 {[%emt 0:07:37]} Qe8 {[%emt 0:05:35]} 17. Bd6 {[%emt 0:03:00]} Kh8 {[%emt 0:04:08]} 18. Bxf8 {[%emt 0:00:40]} Qxf8 {[%emt 0:01:11]} 19. cxd5 {[%emt 0:02:03]} Nxd5 {[%emt 0:02:07]} 20. e4 {[%emt 0:05:38]} N5f6 {[%emt 0:02:24]} 21. Rfe1 {[%emt 0:00:58]} Qc8 {[%emt 0:04:03]} 22. Rac1 {[%emt 0:01:27]} Qb7 {[%emt 0:00:55]} 23. d5 {[%emt 0:06:36]} Re8 {[%emt 0:03:27]} 24. d6 {[%emt 0:04:01]} Qa8 {[%emt 0:03:30]} 25. e5 {[%emt 0:11:34]} Nd5 {[%emt 0:02:12]} 26. Qa4 {[%emt 0:10:03]} Nc5 {[%emt 0:02:21]} 27. Rxc5 {[%emt 0:02:13]} bxc5 {[%emt 0:01:35]} 28. d7 {[%emt 0:00:19]} Rf8 {[%emt 0:04:58]} 29. Qa5 {[%emt 0:06:08]} Nb6 {[%emt 0:02:45]} 30. d8=Q {[%emt 0:04:13]} Rxd8 {[%emt 0:01:27]} 31. Nxd8 {[%emt 0:00:07]} Qxd8 {[%emt 0:00:20]} 32. Qxc5 {[%emt 0:00:27]} h6 {[%emt 0:04:43]} 33. Rc1 {[%emt 0:00:42]} Kg8 {[%emt 0:03:18]} 34. Qd6 {[%emt 0:01:24]} Qg5 {[%emt 0:02:49]} 35. Rb1 {[%emt 0:05:26]} Nc4 {[%emt 0:03:40]} 36. Rb8+ {[%emt 0:00:57]} Kh7 {[%emt 0:00:16]} 37. Qd3+ {[%emt 0:00:07]} g6 {[%emt 0:01:34]} 38. Qxc4 {[%emt 0:00:24]} Qxe5 {[%emt 0:00:15]} 39. Rb1 {[%emt 0:00:41]} 1-0

[Event "127th NZ Congress Major 2020"]
[Site "Tauranga"]
[Date "2020.01.17"]
[Round "4.2"]
[White "Patterson, Miles"]
[Black "Carpinter, Bernard"]
[Result "1/2-1/2"]
[ECO "A34"]
[WhiteElo "1954"]
[BlackElo "1708"]
[Annotator "NA RC"]
[PlyCount "87"]
[EventDate "2020.01.14"]
[EventType "swiss"]
[EventCountry "NZL"]
[SourceTitle "playchess.com"]
[Source "ChessBase"]
[SourceQuality "1"]
[TimeControl "40/5400+30:1800+30"]

{[%evp 8,78,18,-6,4,-26,-15,-2,7,0,0,-12,41,33,37,35,46,20,31,49,25,49,39,26,15,13,22,17,23,32767,32767,32767,32767,10,10,12,13,16,32,21,16,0,38,0,0,0,0,0,0,0,62,57,57,55,52,45,61,37,78,84,74,82,85,93,93,103,81,100,32767,8,41,0,8]} 1. c4 {[%emt 0:00:00]} c5 {[%emt 0:00:00]} 2. Nf3 {[%emt 0:00:00]} Nf6 {[%emt 0:00:00]} 3. Nc3 {[%emt 0:00:12]} d5 {[%emt 0:00:26]} 4. cxd5 {[%emt 0:00:13]} Nxd5 {[%emt 0:00:07]} 5. Nxd5 {[%emt 0:02:51]} Qxd5 {[%emt 0:00:10]} 6. g3 {[%emt 0:00:28]} Nc6 {[%emt 0:02:51]} 7. Bg2 {[%emt 0:01:17]} e5 {[%emt 0:00:11]} 8. d3 {[%emt 0:00:44]} Be7 {[%emt 0:03:00]} 9. O-O {[%emt 0:00:16]} Be6 {[%emt 0:00:55] A34: Symmetrical English: 2 Nc3, lines with ...d5} (9... O-O 10. Be3 Qe6 11. Rc1 Nd4 12. a3 Bd7 13. Nxd4 exd4 14. Bd2 Rac8 15. e3 dxe3 16. Bxe3 Bc6 17. Bxc6 Rxc6 18. Qa4 a6 {0-1 (36) Zhigalko,A (2566)-Le,Q (2664) Moscow 2011}) 10. Ng5 $146 {[%emt 0:02:38]} ({Predecessor:} 10. e4 Qd7 11. b3 O-O 12. Rb1 Rad8 13. Bb2 f6 14. Ne1 Nb4 15. a3 Nxd3 16. Nxd3 Qxd3 17. Qxd3 Rxd3 {0-1 (29) Kotula,K-Dudel,M Kolobrzeg 2001}) 10... Qd7 {[%emt 0:00:13]} 11. Nxe6 {[%emt 0:00:08]} Qxe6 {[%emt 0:00:08]} 12. Qa4 {[%emt 0:02:16]} Rc8 {[%emt 0:02:17]} 13. Be3 {[%emt 0:02:31]} O-O {[%emt 0:01:18]} 14. Rac1 {[%emt 0:02:55]} b6 {[%emt 0:01:20]} 15. a3 {[%emt 0:09:25]} (15. Bxc6 $5 Rxc6 16. Qxa7 $14) 15... a5 {[%emt 0:01:30]} 16. Bxc6 {[%emt 0:10:14]} Qxc6 {[%emt 0:03:21]} 17. Qxc6 {[%emt 0:00:26]} Rxc6 {[%emt 0:00:07]} 18. b4 {[%emt 0:00:30]} axb4 {[%emt 0:00:21]} 19. axb4 {[%emt 0:00:05]} Rfc8 {[%emt 0:00:12]} 20. bxc5 {[%emt 0:00:18]} Bxc5 {[%emt 0:00:25]} 21. Bxc5 {[%emt 0:00:19]} Rxc5 {[%emt 0:00:11]} 22. Rb1 {[%emt 0:08:15]} Rb8 {[%emt 0:08:49]} 23. Rb2 {[%emt 0:01:22]} Kf8 {[%emt 0:00:13]} 24. Rfb1 {[%emt 0:00:05]} Rc6 {[%emt 0:00:07]} 25. f4 {[%emt 0:00:39]} exf4 {[%emt 0:00:58]} 26. gxf4 {[%emt 0:00:06]} Rg6+ {[%emt 0:00:28]} 27. Kf2 {[%emt 0:00:29]} Rh6 {[%emt 0:00:24]} 28. Kg3 {[%emt 0:00:07]} f5 {[%emt 0:05:15]} (28... Rg6+ $11 29. Kf3 Rh6) 29. Rb5 {[%emt 0:00:41]} Rf6 {[%emt 0:00:08]} 30. Kf3 {[%emt 0:04:00]} g6 {[%emt 0:00:49]} 31. h4 {[%emt 0:01:24]} Ke8 {[%emt 0:15:12]} 32. h5 {[%emt 0:00:26]} Kd8 {[%emt 0:00:14]} 33. hxg6 {[%emt 0:00:07]} hxg6 {[%emt 0:00:08]} 34. e4 {[%emt 0:01:21]} fxe4+ {[%emt 0:00:18]} 35. dxe4 {[%emt 0:00:05]} Kc7 {[%emt 0:00:40]} 36. e5 {[%emt 0:07:26]} Rc6 {[%emt 0:05:01]} 37. Kg4 {[%emt 0:01:30]} Rf8 {[%emt 0:02:45] [#]} 38. R1b4 {[%emt 0:03:18]} (38. R5b4 $1 $16) 38... Rf5 {[%emt 0:00:42]} 39. Rd5 {[%emt 0:01:41]} Rc1 $11 {[%emt 0:12:30]} 40. Rd3 {[%emt 0:00:00]} Rg1+ {[%emt 0:00:00]} 41. Rg3 {[%emt 0:23:07]} Rxg3+ {[%emt 0:02:30]} 42. Kxg3 {[%emt 0:00:01]} g5 {[%emt 0:00:36]} 43. Kg4 {[%emt 0:00:28]} Rxf4+ {[%emt 0:00:20]} 44. Rxf4 {[%emt 0:00:12]} 1/2-1/2

[Event "127th NZ Congress Major 2020"]
[Site "Tauranga"]
[Date "2020.01.17"]
[Round "4.3"]
[White "McDougall, Euan"]
[Black "Dai, Oliver"]
[Result "0-1"]
[ECO "B11"]
[WhiteElo "1679"]
[BlackElo "1737"]
[Annotator "NA RC"]
[PlyCount "32"]
[EventDate "2020.01.14"]
[EventType "swiss"]
[EventCountry "NZL"]
[SourceTitle "playchess.com"]
[Source "ChessBase"]
[SourceQuality "1"]
[TimeControl "40/5400+30:1800+30"]

1. e4 {[%emt 0:00:00]} c6 {[%emt 0:00:00]} 2. f4 {[%emt 0:00:00]} d5 {[%emt 0:00:01]} 3. Nc3 {[%emt 0:00:00]} dxe4 {[%emt 0:00:30]} 4. Nxe4 {[%emt 0:00:00]} Nf6 {[%emt 0:00:13]} 5. Nxf6+ {[%emt 0:00:00]} exf6 {[%emt 0:00:17]} 6. Bc4 {[%emt 0:00:08]} Bd6 {[%emt 0:02:12]} 7. d3 {[%emt 0:00:07]} O-O {[%emt 0:00:44]} 8. h3 {[%emt 0:01:16]} Re8+ {[%emt 0:02:43]} 9. Ne2 {[%emt 0:00:07]} Bc5 {[%emt 0:01:26]} 10. d4 {[%emt 0:00:15]} Bxd4 {[%emt 0:00:38]} 11. c3 {[%emt 0:00:09]} Bb6 {[%emt 0:01:17]} 12. Qb3 {[%emt 0:00:08]} Be6 {[%emt 0:01:14]} 13. Bd2 {[%emt 0:00:05]} Na6 {[%emt 0:02:06]} 14. f5 {[%emt 0:01:28]} Bxc4 {[%emt 0:00:54]} 15. Qxc4 {[%emt 0:00:01]} Nc5 {[%emt 0:02:22]} 16. Qd4 {[%emt 0:01:59]} Nd3+ {[%emt 0:00:17]} 0-1

[Event "127th NZ Congress Major 2020"]
[Site "Tauranga"]
[Date "2020.01.17"]
[Round "4.5"]
[White "Deng, Abraham"]
[Black "Gold, Hamish"]
[Result "0-1"]
[ECO "B00"]
[WhiteElo "1558"]
[BlackElo "1683"]
[Annotator "NA"]
[PlyCount "140"]
[EventDate "2020.01.14"]
[EventType "swiss"]
[EventCountry "NZL"]
[SourceTitle "playchess.com"]
[Source "ChessBase"]
[SourceQuality "1"]
[TimeControl "40/5400+30:1800+30"]

1. e4 {[%emt 0:00:00]} Nc6 {[%emt 0:00:00]} 2. Nf3 {[%emt 0:00:06]} f5 {[%emt 0:00:21]} 3. Nc3 {[%emt 0:00:52]} d6 {[%emt 0:01:51]} 4. d4 {[%emt 0:01:10]} fxe4 {[%emt 0:02:35]} 5. Nxe4 {[%emt 0:00:13]} Bf5 {[%emt 0:00:46]} 6. Ng3 {[%emt 0:02:12]} Bg6 {[%emt 0:02:05]} 7. Bc4 {[%emt 0:01:07]} d5 {[%emt 0:02:34]} 8. Bb5 {[%emt 0:00:31]} Qd6 {[%emt 0:00:47]} 9. O-O {[%emt 0:01:23]} O-O-O {[%emt 0:01:27]} 10. Re1 {[%emt 0:02:52]} Nf6 {[%emt 0:00:59]} 11. c3 {[%emt 0:02:19]} Ne4 {[%emt 0:01:05]} 12. Nxe4 {[%emt 0:01:06]} dxe4 {[%emt 0:03:05]} 13. Bxc6 {[%emt 0:00:52]} Qxc6 {[%emt 0:04:10]} 14. Ne5 {[%emt 0:00:52]} Qd6 {[%emt 0:02:35]} 15. Qg4+ {[%emt 0:01:16]} e6 {[%emt 0:01:00]} 16. Nxg6 {[%emt 0:01:16]} hxg6 {[%emt 0:00:15]} 17. Bf4 {[%emt 0:00:14]} Qd5 {[%emt 0:01:06]} 18. Be5 {[%emt 0:02:38]} Bd6 {[%emt 0:01:58]} 19. Rxe4 {[%emt 0:00:27]} Kb8 {[%emt 0:01:37]} 20. Bxd6 {[%emt 0:01:37]} Qxd6 {[%emt 0:00:31]} 21. h3 {[%emt 0:00:34]} Qb6 {[%emt 0:01:40]} 22. b3 {[%emt 0:01:08]} Qa5 {[%emt 0:03:48]} 23. Re3 {[%emt 0:04:16]} a6 {[%emt 0:08:15]} 24. Qxg6 {[%emt 0:00:52]} c5 {[%emt 0:03:15]} 25. Qxg7 {[%emt 0:02:22]} cxd4 {[%emt 0:00:48]} 26. cxd4 {[%emt 0:01:07]} Ka8 {[%emt 0:02:04]} 27. Rxe6 {[%emt 0:01:04]} Rhg8 {[%emt 0:01:21]} 28. Qe5 {[%emt 0:00:48]} Qc3 {[%emt 0:00:40]} 29. Re1 {[%emt 0:06:26]} Qxh3 {[%emt 0:01:02]} 30. Qh2 {[%emt 0:00:33]} Qc3 {[%emt 0:01:44]} 31. Qe5 {[%emt 0:01:02]} Qh3 {[%emt 0:00:43]} 32. Qh2 {[%emt 0:01:39]} Qc3 {[%emt 0:03:21]} 33. d5 {[%emt 0:01:27]} Rh8 {[%emt 0:03:11]} 34. Qe5 {[%emt 0:00:57]} Qc2 {[%emt 0:04:36]} 35. Qe2 {[%emt 0:03:07]} Qh7 {[%emt 0:00:53]} 36. f3 {[%emt 0:00:39]} Qh2+ {[%emt 0:01:01]} 37. Kf2 {[%emt 0:00:57]} Qh4+ {[%emt 0:00:54]} 38. Ke3 {[%emt 0:01:41]} Rxd5 {[%emt 0:01:47]} 39. Rxa6+ {[%emt 0:20:25]} Kb8 {[%emt 0:02:36]} 40. Ra4 {[%emt 0:00:00]} Qg5+ {[%emt 0:00:00]} 41. Kf2 {[%emt 0:06:00]} Rd2 {[%emt 0:01:45]} 42. Qxd2 {[%emt 0:04:28]} Qxd2+ {[%emt 0:00:18]} 43. Re2 {[%emt 0:00:09]} Qg5 {[%emt 0:00:40]} 44. Rc4 {[%emt 0:00:57]} Rg8 {[%emt 0:02:30]} 45. Kf1 {[%emt 0:01:10]} Rd8 {[%emt 0:01:02]} 46. Ke1 {[%emt 0:00:45]} Qg3+ {[%emt 0:00:49]} 47. Rf2 {[%emt 0:00:27]} Qd6 {[%emt 0:01:02]} 48. Re2 {[%emt 0:00:40]} Qh2 {[%emt 0:02:42]} 49. Kf1 {[%emt 0:02:17]} Rd1+ {[%emt 0:02:39]} 50. Kf2 {[%emt 0:01:03]} Rd8 {[%emt 0:02:37]} 51. Kf1 {[%emt 0:01:29]} Qg3 {[%emt 0:00:47]} 52. Rf2 {[%emt 0:02:33]} Qe5 {[%emt 0:02:36]} 53. Re2 {[%emt 0:02:54]} Qf6 {[%emt 0:02:55]} 54. Ke1 {[%emt 0:01:43]} Qb6 {[%emt 0:01:00]} 55. Ree4 {[%emt 0:10:06]} Qg1+ {[%emt 0:01:27]} 56. Ke2 {[%emt 0:00:08]} Qxg2+ {[%emt 0:00:22]} 57. Ke1 {[%emt 0:00:27]} Qd2+ {[%emt 0:02:49]} 58. Kf1 {[%emt 0:00:09]} Rh8 {[%emt 0:00:22]} 59. Rh4 {[%emt 0:01:28]} Rf8 {[%emt 0:00:42]} 60. Rh3 {[%emt 0:02:09]} Rd8 {[%emt 0:02:02]} 61. Re4 {[%emt 0:01:42]} Qxa2 {[%emt 0:00:53]} 62. f4 {[%emt 0:01:23]} Rg8 {[%emt 0:01:51]} 63. Rhe3 {[%emt 0:02:21]} Qb1+ {[%emt 0:01:39]} 64. Re1 {[%emt 0:05:01]} Qd3+ {[%emt 0:01:05]} 65. Kf2 {[%emt 0:01:00]} Qg3+ {[%emt 0:01:03]} 66. Ke2 {[%emt 0:00:12]} Qxb3 {[%emt 0:00:28]} 67. Kd2 {[%emt 0:01:24]} Rd8+ {[%emt 0:01:51]} 68. Kc1 {[%emt 0:01:33]} Qc3+ {[%emt 0:03:13]} 69. Kb1 {[%emt 0:00:07]} Rd2 {[%emt 0:01:00]} 70. Re8+ {[%emt 0:01:08]} Ka7 {[%emt 0:00:21]} 0-1